[Event "Titled Tuesday Blitz January 10 Late 2023"]
[White "Deac, Bogdan-Daniel"]
[Black "Ivic, Velimir"]
[WhiteFideId "1226380"]
[BlackFideId "950122"]
[WhiteElo "2700"]
[BlackElo "2595"]
[Result "1-0"]
[Round "06"]
[TimeControl "180+2"]
[Date "2023.01.10"]
[WhiteClock "0:00:02"]
[BlackClock "0:00:14"]

1. b3 {[%clk 0:00:00]}  e5 {[%clk 0:00:00]} 2. Bb2 {[%clk 0:03:00]}  Nc6 {[%clk 0:02:57]} 3. Nf3 {[%clk 0:03:00]}  e4 {[%clk 0:02:58]} 4. Nd4 {[%clk 0:03:01]}  Nxd4 {[%clk 0:02:55]} 5. Bxd4 {[%clk 0:03:01]}  d5 {[%clk 0:02:55]} 6. e3 {[%clk 0:03:01]}  h5 {[%clk 0:02:56]} 7. Bb2 {[%clk 0:03:01]}  Bf5 {[%clk 0:02:50]} 8. c4 {[%clk 0:02:42]}  c6 {[%clk 0:02:45]} 9. cxd5 {[%clk 0:02:40]}  Qxd5 {[%clk 0:02:34]} 10. Nc3 {[%clk 0:02:37]}  Qd7 {[%clk 0:02:35]} 11. Qc2 {[%clk 0:02:37]}  Nf6 {[%clk 0:02:35]} 12. O-O-O {[%clk 0:02:36]}  O-O-O {[%clk 0:02:35]} 13. h3 {[%clk 0:02:25]}  Kb8 {[%clk 0:02:25]} 14. Kb1 {[%clk 0:02:21]}  Ka8 {[%clk 0:02:20]} 15. Be2 {[%clk 0:02:10]}  h4 {[%clk 0:02:14]} 16. Na4 {[%clk 0:02:02]}  Rh6 {[%clk 0:02:13]} 17. Nc5 {[%clk 0:02:01]}  Qe7 {[%clk 0:02:00]} 18. d4 {[%clk 0:01:39]}  Rg6 {[%clk 0:01:50]} 19. Rhg1 {[%clk 0:01:28]}  Nd5 {[%clk 0:01:43]} 20. a3 {[%clk 0:01:25]}  Re8 {[%clk 0:01:39]} 21. b4 {[%clk 0:01:20]}  Qc7 {[%clk 0:01:26]} 22. b5 {[%clk 0:00:31]}  cxb5 {[%clk 0:01:25]} 23. Bxb5 {[%clk 0:00:19]}  Rc8 {[%clk 0:01:23]} 24. Bc4 {[%clk 0:00:14]}  Nb6 {[%clk 0:01:23]} 25. Bb3 {[%clk 0:00:11]}  Rc6 {[%clk 0:01:17]} 26. Rc1 {[%clk 0:00:09]}  Nd7 {[%clk 0:01:10]} 27. Bd5 {[%clk 0:00:07]}  Rb6 {[%clk 0:01:08]} 28. Nxd7 {[%clk 0:00:07]}  Qxd7 {[%clk 0:00:58]} 29. Qxc8+ {[%clk 0:00:05]}  Qxc8 {[%clk 0:00:54]} 30. Rxc8+ {[%clk 0:00:05]}  Bxc8 {[%clk 0:00:55]} 31. Rc1 {[%clk 0:00:05]}  Kb8 {[%clk 0:00:56]} 32. Ka2 {[%clk 0:00:05]}  f5 {[%clk 0:00:56]} 33. a4 {[%clk 0:00:04]}  Rg6 {[%clk 0:00:56]} 34. Rg1 {[%clk 0:00:03]}  Bd6 {[%clk 0:00:54]} 35. f3 {[%clk 0:00:03]}  Be6 {[%clk 0:00:55]} 36. fxe4 {[%clk 0:00:02]}  fxe4 {[%clk 0:00:40]} 37. Bxe6 {[%clk 0:00:01]}  Rxe6 {[%clk 0:00:41]} 38. Rf1 {[%clk 0:00:02]}  Rg6 {[%clk 0:00:42]} 39. Rf2 {[%clk 0:00:02]}  a6 {[%clk 0:00:41]} 40. Kb3 {[%clk 0:00:02]}  b5 {[%clk 0:00:31]} 41. axb5 {[%clk 0:00:02]}  axb5 {[%clk 0:00:31]} 42. d5 {[%clk 0:00:03]}  Kb7 {[%clk 0:00:32]} 43. Bd4 {[%clk 0:00:03]}  Kc8 {[%clk 0:00:32]} 44. Rc2+ {[%clk 0:00:03]}  Kd7 {[%clk 0:00:29]} 45. Ra2 {[%clk 0:00:01]}  Rg5 {[%clk 0:00:29]} 46. Ra7+ {[%clk 0:00:02]}  Kc8 {[%clk 0:00:17]} 47. Rxg7 {[%clk 0:00:02]}  Rf5 {[%clk 0:00:18]} 48. Rh7 {[%clk 0:00:02]}  Bg3 {[%clk 0:00:18]} 49. d6 {[%clk 0:00:02]}  Rd5 {[%clk 0:00:18]} 50. Rc7+ {[%clk 0:00:03]}  Kb8 {[%clk 0:00:16]} 51. Rg7 {[%clk 0:00:03]}  Rxd6 {[%clk 0:00:13]} 52. Rxg3 {[%clk 0:00:02]}  hxg3 {[%clk 0:00:12]} 53. Be5 {[%clk 0:00:01]}  Kc7 {[%clk 0:00:12]} 54. Kb4 {[%clk 0:00:02]}  Kc6 {[%clk 0:00:13]} 55. Bxd6 {[%clk 0:00:02]}  Kxd6 {[%clk 0:00:14]} 56. Kxb5 {[%clk 0:00:02]} 1-0


[Site "https://www.chess.com"]

[Event "Titled Tuesday Blitz January 10 Late 2023"]
[White "Sokolovsky, Yahli"]
[Black "Xiong, Jeffery"]
[WhiteFideId "2820242"]
[BlackFideId "2047640"]
[WhiteElo "2461"]
[BlackElo "2692"]
[Result "0-1"]
[Round "06"]
[TimeControl "180+2"]
[Date "2023.01.10"]
[WhiteClock "0:00:04"]
[BlackClock "0:02:11"]

1. b3 {[%clk 0:00:00]}  d5 {[%clk 0:00:00]} 2. e3 {[%clk 0:03:00]}  Nf6 {[%clk 0:02:59]} 3. Bb2 {[%clk 0:03:01]}  Bf5 {[%clk 0:02:58]} 4. Nf3 {[%clk 0:03:01]}  h6 {[%clk 0:02:59]} 5. d4 {[%clk 0:03:01]}  e6 {[%clk 0:03:00]} 6. Bd3 {[%clk 0:02:50]}  Bd6 {[%clk 0:03:00]} 7. O-O {[%clk 0:02:50]}  O-O {[%clk 0:02:59]} 8. c4 {[%clk 0:02:50]}  c6 {[%clk 0:02:59]} 9. Qc2 {[%clk 0:02:51]}  Bxd3 {[%clk 0:02:59]} 10. Qxd3 {[%clk 0:02:51]}  Ne4 {[%clk 0:02:58]} 11. Ne5 {[%clk 0:02:52]}  Nd7 {[%clk 0:02:57]} 12. f4 {[%clk 0:02:49]}  Ndf6 {[%clk 0:02:52]} 13. Ba3 {[%clk 0:02:43]}  Bxa3 {[%clk 0:02:43]} 14. Nxa3 {[%clk 0:02:37]}  Qa5 {[%clk 0:02:39]} 15. Nc2 {[%clk 0:02:38]}  c5 {[%clk 0:02:39]} 16. dxc5 {[%clk 0:02:31]}  Qxc5 {[%clk 0:02:37]} 17. Nd4 {[%clk 0:02:18]}  Rfd8 {[%clk 0:02:34]} 18. Rac1 {[%clk 0:02:11]}  Rac8 {[%clk 0:02:31]} 19. Rc2 {[%clk 0:02:11]}  Qa5 {[%clk 0:02:31]} 20. Rfc1 {[%clk 0:02:09]}  a6 {[%clk 0:02:23]} 21. cxd5 {[%clk 0:01:57]}  Rxc2 {[%clk 0:02:17]} 22. Qxc2 {[%clk 0:01:46]}  Qxd5 {[%clk 0:02:18]} 23. Qc7 {[%clk 0:01:47]}  Rf8 {[%clk 0:02:17]} 24. h3 {[%clk 0:01:43]}  Nd6 {[%clk 0:02:17]} 25. Rc5 {[%clk 0:01:06]}  Qe4 {[%clk 0:02:17]} 26. Rc3 {[%clk 0:00:54]}  Nd5 {[%clk 0:02:15]} 27. Qxd6 {[%clk 0:00:27]}  Nxc3 {[%clk 0:02:12]} 28. Ng4 {[%clk 0:00:20]}  h5 {[%clk 0:02:12]} 29. Nf2 {[%clk 0:00:04]}  Qxe3 {[%clk 0:02:11]} 30. Nf3 {[%clk 0:00:04]}  Qxf2+ {[%clk 0:02:11]} 0-1


[Site "https://www.chess.com"]

[Event "Titled Tuesday Blitz January 10 Late 2023"]
[White "Fedoseev, Vladimir"]
[Black "Talibov, Shiroghlan"]
[WhiteFideId "24130737"]
[BlackFideId "13429078"]
[WhiteElo "2680"]
[BlackElo "2359"]
[Result "1-0"]
[Round "06"]
[TimeControl "180+2"]
[Date "2023.01.10"]
[WhiteClock "0:00:15"]
[BlackClock "0:00:07"]

1. e4 {[%clk 0:00:00]}  e6 {[%clk 0:00:00]} 2. d4 {[%clk 0:03:00]}  d5 {[%clk 0:02:58]} 3. Nd2 {[%clk 0:02:59]}  Nf6 {[%clk 0:02:59]} 4. e5 {[%clk 0:03:00]}  Nfd7 {[%clk 0:02:47]} 5. f4 {[%clk 0:02:58]}  c5 {[%clk 0:02:47]} 6. c3 {[%clk 0:02:59]}  Nc6 {[%clk 0:02:41]} 7. Ngf3 {[%clk 0:02:58]}  Qb6 {[%clk 0:02:40]} 8. Nb3 {[%clk 0:02:49]}  cxd4 {[%clk 0:02:37]} 9. Nbxd4 {[%clk 0:02:40]}  Nxd4 {[%clk 0:02:20]} 10. cxd4 {[%clk 0:02:39]}  Bb4+ {[%clk 0:02:17]} 11. Bd2 {[%clk 0:02:39]}  O-O {[%clk 0:02:11]} 12. Bd3 {[%clk 0:02:33]}  f6 {[%clk 0:02:11]} 13. Qc2 {[%clk 0:02:34]}  Bxd2+ {[%clk 0:02:01]} 14. Kxd2 {[%clk 0:02:25]}  fxe5 {[%clk 0:01:55]} 15. fxe5 {[%clk 0:02:07]}  Rxf3 {[%clk 0:01:52]} 16. gxf3 {[%clk 0:01:33]}  Qxd4 {[%clk 0:01:51]} 17. Qc3 {[%clk 0:01:34]}  Qf4+ {[%clk 0:01:51]} 18. Kc2 {[%clk 0:01:32]}  Nxe5 {[%clk 0:01:50]} 19. Rae1 {[%clk 0:01:26]}  Nc6 {[%clk 0:01:51]} 20. Kb1 {[%clk 0:01:26]}  Bd7 {[%clk 0:01:31]} 21. Rhg1 {[%clk 0:01:21]}  Qd4 {[%clk 0:01:30]} 22. Qc2 {[%clk 0:01:21]}  Qh4 {[%clk 0:01:14]} 23. Rg3 {[%clk 0:01:17]}  Rf8 {[%clk 0:01:08]} 24. Reg1 {[%clk 0:00:57]}  Rf7 {[%clk 0:01:02]} 25. Qg2 {[%clk 0:00:55]}  Qd4 {[%clk 0:01:02]} 26. Rd1 {[%clk 0:00:50]}  Qe5 {[%clk 0:00:54]} 27. Qh3 {[%clk 0:00:37]}  g6 {[%clk 0:00:52]} 28. Rdg1 {[%clk 0:00:34]}  Ne7 {[%clk 0:00:47]} 29. Qh6 {[%clk 0:00:24]}  Qf6 {[%clk 0:00:47]} 30. Bxg6 {[%clk 0:00:21]}  hxg6 {[%clk 0:00:46]} 31. Rxg6+ {[%clk 0:00:17]}  Nxg6 {[%clk 0:00:39]} 32. Rxg6+ {[%clk 0:00:17]}  Qxg6+ {[%clk 0:00:37]} 33. Qxg6+ {[%clk 0:00:18]}  Rg7 {[%clk 0:00:38]} 34. Qf6 {[%clk 0:00:18]}  Rf7 {[%clk 0:00:34]} 35. Qd8+ {[%clk 0:00:18]}  Kh7 {[%clk 0:00:34]} 36. f4 {[%clk 0:00:17]}  Bc6 {[%clk 0:00:32]} 37. Qh4+ {[%clk 0:00:18]}  Kg7 {[%clk 0:00:30]} 38. Kc2 {[%clk 0:00:17]}  d4 {[%clk 0:00:30]} 39. Kd3 {[%clk 0:00:16]}  Rd7 {[%clk 0:00:25]} 40. Qg5+ {[%clk 0:00:15]}  Kf7 {[%clk 0:00:22]} 41. h4 {[%clk 0:00:15]}  a6 {[%clk 0:00:21]} 42. h5 {[%clk 0:00:15]}  Bb5+ {[%clk 0:00:21]} 43. Kd2 {[%clk 0:00:16]}  Bc6 {[%clk 0:00:21]} 44. h6 {[%clk 0:00:15]}  Be4 {[%clk 0:00:16]} 45. Qg7+ {[%clk 0:00:15]}  Ke8 {[%clk 0:00:16]} 46. Qg8+ {[%clk 0:00:15]}  Ke7 {[%clk 0:00:15]} 47. h7 {[%clk 0:00:13]}  Bxh7 {[%clk 0:00:16]} 48. Qxh7+ {[%clk 0:00:14]}  Kd6 {[%clk 0:00:15]} 49. Qe4 {[%clk 0:00:14]}  Ke7 {[%clk 0:00:15]} 50. f5 {[%clk 0:00:15]}  Rd6 {[%clk 0:00:09]} 51. Qxb7+ {[%clk 0:00:15]}  Kf6 {[%clk 0:00:07]} 52. fxe6 {[%clk 0:00:15]}  Kxe6 {[%clk 0:00:07]} 53. Kd3 {[%clk 0:00:15]} 1-0


[Site "https://www.chess.com"]

[Event "Titled Tuesday Blitz January 10 Late 2023"]
[White "Kazakouski, Valery"]
[Black "Nakamura, Hikaru"]
[WhiteFideId "13507443"]
[BlackFideId "2016192"]
[WhiteElo "2539"]
[BlackElo "2775"]
[Result "0-1"]
[Round "06"]
[TimeControl "180+2"]
[Date "2023.01.10"]
[WhiteClock "0:00:01"]
[BlackClock "0:00:11"]

1. Nf3 {[%clk 0:00:00]}  g6 {[%clk 0:00:00]} 2. d4 {[%clk 0:03:00]}  Bg7 {[%clk 0:02:03]} 3. c4 {[%clk 0:02:58]}  d6 {[%clk 0:02:03]} 4. g3 {[%clk 0:02:58]}  Bd7 {[%clk 0:02:04]} 5. Nc3 {[%clk 0:02:58]}  Qc8 {[%clk 0:02:04]} 6. Be3 {[%clk 0:02:56]}  Nc6 {[%clk 0:02:04]} 7. d5 {[%clk 0:02:53]}  Na5 {[%clk 0:02:04]} 8. Bd4 {[%clk 0:02:50]}  Nf6 {[%clk 0:02:04]} 9. c5 {[%clk 0:02:49]}  dxc5 {[%clk 0:02:04]} 10. Bxc5 {[%clk 0:02:13]}  b6 {[%clk 0:01:56]} 11. Bd4 {[%clk 0:02:14]}  c5 {[%clk 0:01:56]} 12. Be3 {[%clk 0:02:07]}  Nc4 {[%clk 0:01:56]} 13. Bc1 {[%clk 0:02:02]}  Nd6 {[%clk 0:01:52]} 14. Bg2 {[%clk 0:02:02]}  Nfe4 {[%clk 0:01:53]} 15. Nxe4 {[%clk 0:02:02]}  Nxe4 {[%clk 0:01:52]} 16. O-O {[%clk 0:01:53]}  O-O {[%clk 0:01:53]} 17. Qc2 {[%clk 0:01:54]}  Nd6 {[%clk 0:01:53]} 18. e4 {[%clk 0:01:51]}  Bg4 {[%clk 0:01:49]} 19. Bg5 {[%clk 0:01:51]}  Re8 {[%clk 0:01:48]} 20. Bf4 {[%clk 0:01:50]}  Bxf3 {[%clk 0:01:47]} 21. Bxf3 {[%clk 0:01:44]}  Nb5 {[%clk 0:01:42]} 22. Bg2 {[%clk 0:01:44]}  e5 {[%clk 0:01:43]} 23. Be3 {[%clk 0:01:22]}  Nd6 {[%clk 0:01:40]} 24. Rae1 {[%clk 0:01:18]}  f5 {[%clk 0:01:37]} 25. f4 {[%clk 0:01:14]}  fxe4 {[%clk 0:01:22]} 26. Bxe4 {[%clk 0:01:06]}  Nxe4 {[%clk 0:01:16]} 27. Qxe4 {[%clk 0:01:03]}  exf4 {[%clk 0:01:16]} 28. Qxf4 {[%clk 0:01:02]}  Qd7 {[%clk 0:01:17]} 29. d6 {[%clk 0:01:02]}  Re6 {[%clk 0:01:17]} 30. Qc4 {[%clk 0:00:40]}  Re8 {[%clk 0:01:13]} 31. Bf4 {[%clk 0:00:36]}  Bd4+ {[%clk 0:01:08]} 32. Kg2 {[%clk 0:00:35]}  Kg7 {[%clk 0:00:35]} 33. Rxe6 {[%clk 0:00:34]}  Rxe6 {[%clk 0:00:35]} 34. b3 {[%clk 0:00:33]}  h6 {[%clk 0:00:36]} 35. h4 {[%clk 0:00:20]}  g5 {[%clk 0:00:36]} 36. hxg5 {[%clk 0:00:20]}  hxg5 {[%clk 0:00:32]} 37. Bxg5 {[%clk 0:00:20]}  Qxd6 {[%clk 0:00:33]} 38. Bf4 {[%clk 0:00:21]}  Qc6+ {[%clk 0:00:31]} 39. Kh3 {[%clk 0:00:19]}  Re8 {[%clk 0:00:31]} 40. g4 {[%clk 0:00:17]}  Rh8+ {[%clk 0:00:32]} 41. Kg3 {[%clk 0:00:06]}  Qe4 {[%clk 0:00:22]} 42. Qa6 {[%clk 0:00:06]}  Kg6 {[%clk 0:00:23]} 43. Qc4 {[%clk 0:00:02]}  a6 {[%clk 0:00:23]} 44. a4 {[%clk 0:00:01]}  Kg7 {[%clk 0:00:14]} 45. Qxa6 {[%clk 0:00:01]}  Qe6 {[%clk 0:00:12]} 46. Qc4 {[%clk 0:00:01]}  Qe7 {[%clk 0:00:11]} 47. Qd3 {[%clk 0:00:01]}  Qh4+ {[%clk 0:00:10]} 48. Kf3 {[%clk 0:00:01]}  Qh3+ {[%clk 0:00:10]} 49. Bg3 {[%clk 0:00:01]}  Rf8+ {[%clk 0:00:11]} 50. Ke4 {[%clk 0:00:01]}  Qxf1 {[%clk 0:00:11]} 0-1


[Site "https://www.chess.com"]

[Event "Titled Tuesday Blitz January 10 Late 2023"]
[White "Boruchovsky, Avital"]
[Black "Vachier-Lagrave, Maxime"]
[WhiteFideId "2800055"]
[BlackFideId "623539"]
[WhiteElo "2539"]
[BlackElo "2742"]
[Result "0-1"]
[Round "06"]
[TimeControl "180+2"]
[Date "2023.01.10"]
[WhiteClock "0:00:03"]
[BlackClock "0:00:17"]

1. c4 {[%clk 0:00:00]}  Nf6 {[%clk 0:00:00]} 2. Nc3 {[%clk 0:03:00]}  e5 {[%clk 0:02:57]} 3. Nf3 {[%clk 0:03:01]}  Nc6 {[%clk 0:02:55]} 4. e4 {[%clk 0:03:00]}  g6 {[%clk 0:02:54]} 5. d4 {[%clk 0:03:00]}  exd4 {[%clk 0:02:51]} 6. Nxd4 {[%clk 0:02:57]}  Bg7 {[%clk 0:02:51]} 7. Be3 {[%clk 0:02:58]}  O-O {[%clk 0:02:52]} 8. Be2 {[%clk 0:02:55]}  Re8 {[%clk 0:02:51]} 9. f3 {[%clk 0:02:49]}  d6 {[%clk 0:02:46]} 10. O-O {[%clk 0:02:50]}  Bd7 {[%clk 0:02:22]} 11. Nxc6 {[%clk 0:02:48]}  bxc6 {[%clk 0:02:23]} 12. Qd2 {[%clk 0:02:38]}  c5 {[%clk 0:02:21]} 13. Rad1 {[%clk 0:02:38]}  Rb8 {[%clk 0:02:20]} 14. b3 {[%clk 0:02:36]}  a5 {[%clk 0:02:15]} 15. Bd3 {[%clk 0:02:36]}  a4 {[%clk 0:02:13]} 16. Bc2 {[%clk 0:02:27]}  axb3 {[%clk 0:02:07]} 17. axb3 {[%clk 0:02:27]}  Bc6 {[%clk 0:02:05]} 18. Bg5 {[%clk 0:02:28]}  Qc8 {[%clk 0:01:57]} 19. Ne2 {[%clk 0:02:14]}  Ra8 {[%clk 0:01:45]} 20. Bb1 {[%clk 0:01:55]}  Qb7 {[%clk 0:01:42]} 21. Nc1 {[%clk 0:01:40]}  Nd7 {[%clk 0:01:34]} 22. Be3 {[%clk 0:00:53]}  Ra1 {[%clk 0:01:29]} 23. Bc2 {[%clk 0:00:48]}  Rea8 {[%clk 0:01:25]} 24. Kh1 {[%clk 0:00:45]}  h5 {[%clk 0:01:23]} 25. Rde1 {[%clk 0:00:43]}  Qb4 {[%clk 0:00:56]} 26. Qf2 {[%clk 0:00:41]}  Qc3 {[%clk 0:00:53]} 27. Rd1 {[%clk 0:00:37]}  Kh7 {[%clk 0:00:45]} 28. h3 {[%clk 0:00:29]}  Ne5 {[%clk 0:00:30]} 29. f4 {[%clk 0:00:29]}  Nd7 {[%clk 0:00:30]} 30. e5 {[%clk 0:00:25]}  dxe5 {[%clk 0:00:31]} 31. f5 {[%clk 0:00:23]}  Nf6 {[%clk 0:00:28]} 32. fxg6+ {[%clk 0:00:17]}  fxg6 {[%clk 0:00:21]} 33. Rd3 {[%clk 0:00:13]}  Qa5 {[%clk 0:00:22]} 34. Qe2 {[%clk 0:00:08]}  Be4 {[%clk 0:00:20]} 35. Bd2 {[%clk 0:00:04]}  Bxd3 {[%clk 0:00:18]} 36. Qxd3 {[%clk 0:00:02]}  e4 {[%clk 0:00:17]} 37. Qg3 {[%clk 0:00:03]}  Qxd2 {[%clk 0:00:17]} 0-1


[Site "https://www.chess.com"]

[Event "Titled Tuesday Blitz January 10 Late 2023"]
[White "Sarana, Alexey"]
[Black "Bryakin, Mikhail"]
[WhiteFideId "24133795"]
[BlackFideId "4165314"]
[WhiteElo "2685"]
[BlackElo "2455"]
[Result "1-0"]
[Round "06"]
[TimeControl "180+2"]
[Date "2023.01.10"]
[WhiteClock "0:00:41"]
[BlackClock "0:00:07"]

1. c4 {[%clk 0:00:00]}  Nf6 {[%clk 0:00:00]} 2. Nc3 {[%clk 0:03:00]}  c5 {[%clk 0:02:53]} 3. Nf3 {[%clk 0:02:59]}  Nc6 {[%clk 0:02:50]} 4. d4 {[%clk 0:02:59]}  cxd4 {[%clk 0:02:50]} 5. Nxd4 {[%clk 0:02:59]}  e6 {[%clk 0:02:49]} 6. g3 {[%clk 0:03:00]}  d5 {[%clk 0:02:49]} 7. cxd5 {[%clk 0:03:00]}  Nxd5 {[%clk 0:02:42]} 8. Bg2 {[%clk 0:02:59]}  Bb4 {[%clk 0:02:42]} 9. Nxc6 {[%clk 0:02:46]}  bxc6 {[%clk 0:02:19]} 10. Bd2 {[%clk 0:02:43]}  O-O {[%clk 0:02:16]} 11. O-O {[%clk 0:02:44]}  Bb7 {[%clk 0:02:14]} 12. Qc2 {[%clk 0:02:43]}  Rc8 {[%clk 0:02:07]} 13. Rfd1 {[%clk 0:02:41]}  Qe7 {[%clk 0:01:53]} 14. a3 {[%clk 0:02:41]}  Nxc3 {[%clk 0:01:45]} 15. bxc3 {[%clk 0:02:29]}  Ba5 {[%clk 0:01:43]} 16. Rab1 {[%clk 0:02:30]}  Ba8 {[%clk 0:01:35]} 17. Be3 {[%clk 0:02:26]}  Qxa3 {[%clk 0:01:33]} 18. c4 {[%clk 0:02:24]}  Qe7 {[%clk 0:01:07]} 19. Ra1 {[%clk 0:02:24]}  Bb6 {[%clk 0:00:29]} 20. c5 {[%clk 0:02:17]}  Bd8 {[%clk 0:00:19]} 21. Rd6 {[%clk 0:02:16]}  Bc7 {[%clk 0:00:20]} 22. Rxa7 {[%clk 0:02:09]}  Bxd6 {[%clk 0:00:16]} 23. Rxe7 {[%clk 0:01:47]}  Bxe7 {[%clk 0:00:15]} 24. h4 {[%clk 0:01:48]}  Bf6 {[%clk 0:00:16]} 25. h5 {[%clk 0:01:49]}  h6 {[%clk 0:00:14]} 26. Qa4 {[%clk 0:01:47]}  Bb7 {[%clk 0:00:14]} 27. Qa7 {[%clk 0:01:44]}  Rc7 {[%clk 0:00:14]} 28. Bf4 {[%clk 0:01:43]}  e5 {[%clk 0:00:12]} 29. Be3 {[%clk 0:01:41]}  Rd7 {[%clk 0:00:12]} 30. Bh3 {[%clk 0:01:40]}  Re7 {[%clk 0:00:11]} 31. Bg2 {[%clk 0:01:39]}  Rc8 {[%clk 0:00:10]} 32. Be4 {[%clk 0:01:33]}  Rd8 {[%clk 0:00:09]} 33. Kg2 {[%clk 0:01:31]}  Red7 {[%clk 0:00:08]} 34. Qb6 {[%clk 0:01:30]}  Re8 {[%clk 0:00:08]} 35. g4 {[%clk 0:01:28]}  Bg5 {[%clk 0:00:02]} 36. Bxg5 {[%clk 0:01:22]}  hxg5 {[%clk 0:00:01]} 37. e3 {[%clk 0:01:20]}  Rde7 {[%clk 0:00:02]} 38. Kg3 {[%clk 0:01:20]}  f6 {[%clk 0:00:01]} 39. Bg6 {[%clk 0:01:18]}  Rc8 {[%clk 0:00:02]} 40. Bf5 {[%clk 0:01:16]}  Rb8 {[%clk 0:00:02]} 41. Qb3+ {[%clk 0:01:16]}  Kf8 {[%clk 0:00:03]} 42. Bh7 {[%clk 0:01:14]}  Rf7 {[%clk 0:00:03]} 43. Qe6 {[%clk 0:01:13]}  Re8 {[%clk 0:00:03]} 44. Qa2 {[%clk 0:01:12]}  Rd8 {[%clk 0:00:04]} 45. Kg2 {[%clk 0:01:10]}  Bc8 {[%clk 0:00:03]} 46. Kg3 {[%clk 0:01:01]}  Bd7 {[%clk 0:00:04]} 47. Qd2 {[%clk 0:00:58]}  Re7 {[%clk 0:00:04]} 48. Qd6 {[%clk 0:00:55]}  Rc8 {[%clk 0:00:03]} 49. h6 {[%clk 0:00:54]}  gxh6 {[%clk 0:00:03]} 50. Qxf6+ {[%clk 0:00:50]}  Rf7 {[%clk 0:00:03]} 51. Qxh6+ {[%clk 0:00:50]}  Rg7 {[%clk 0:00:03]} 52. Be4 {[%clk 0:00:50]}  Be8 {[%clk 0:00:04]} 53. Bf5 {[%clk 0:00:49]}  Rc7 {[%clk 0:00:03]} 54. Be6 {[%clk 0:00:47]}  Bf7 {[%clk 0:00:03]} 55. Qh8+ {[%clk 0:00:43]}  Bg8 {[%clk 0:00:03]} 56. Bxg8 {[%clk 0:00:44]}  Rxg8 {[%clk 0:00:03]} 57. Qxe5 {[%clk 0:00:44]}  Rgg7 {[%clk 0:00:04]} 58. Qd6+ {[%clk 0:00:44]}  Rge7 {[%clk 0:00:05]} 59. Qf6+ {[%clk 0:00:44]}  Rf7 {[%clk 0:00:04]} 60. Qxg5 {[%clk 0:00:44]}  Rce7 {[%clk 0:00:04]} 61. Qh6+ {[%clk 0:00:44]}  Kg8 {[%clk 0:00:04]} 62. Qxc6 {[%clk 0:00:44]}  Rc7 {[%clk 0:00:05]} 63. Qd6 {[%clk 0:00:44]}  Rg7 {[%clk 0:00:04]} 64. f4 {[%clk 0:00:43]}  Kh7 {[%clk 0:00:05]} 65. g5 {[%clk 0:00:43]}  Rce7 {[%clk 0:00:05]} 66. Kf3 {[%clk 0:00:43]}  Re8 {[%clk 0:00:06]} 67. c6 {[%clk 0:00:43]}  Rge7 {[%clk 0:00:06]} 68. e4 {[%clk 0:00:43]}  Rxe4 {[%clk 0:00:07]} 69. Qd3 {[%clk 0:00:41]} 1-0


[Site "https://www.chess.com"]

[Event "Titled Tuesday Blitz January 10 Late 2023"]
[White "Chigaev, Maksim"]
[Black "Tanenbaum, Zachary"]
[WhiteFideId "4108116"]
[BlackFideId "2060850"]
[WhiteElo "2628"]
[BlackElo "2261"]
[Result "1-0"]
[Round "06"]
[TimeControl "180+2"]
[Date "2023.01.10"]
[WhiteClock "0:00:32"]
[BlackClock "0:00:12"]

1. e4 {[%clk 0:00:00]}  e5 {[%clk 0:00:00]} 2. Bc4 {[%clk 0:03:00]}  Nf6 {[%clk 0:03:00]} 3. d3 {[%clk 0:03:00]}  c6 {[%clk 0:03:00]} 4. Nf3 {[%clk 0:03:00]}  d5 {[%clk 0:03:01]} 5. Bb3 {[%clk 0:03:00]}  Bb4+ {[%clk 0:03:02]} 6. Bd2 {[%clk 0:03:01]}  Bxd2+ {[%clk 0:02:59]} 7. Qxd2 {[%clk 0:03:01]}  a5 {[%clk 0:03:00]} 8. a4 {[%clk 0:03:00]}  O-O {[%clk 0:03:00]} 9. exd5 {[%clk 0:02:59]}  cxd5 {[%clk 0:03:00]} 10. Nxe5 {[%clk 0:02:51]}  Nc6 {[%clk 0:03:00]} 11. d4 {[%clk 0:02:51]}  Re8 {[%clk 0:03:01]} 12. O-O {[%clk 0:02:46]}  Nxe5 {[%clk 0:02:34]} 13. dxe5 {[%clk 0:02:39]}  Rxe5 {[%clk 0:02:32]} 14. Nc3 {[%clk 0:02:36]}  Bf5 {[%clk 0:02:33]} 15. Rfe1 {[%clk 0:02:37]}  Rxe1+ {[%clk 0:01:48]} 16. Rxe1 {[%clk 0:02:04]}  Be6 {[%clk 0:01:44]} 17. Qd4 {[%clk 0:02:05]}  Qd6 {[%clk 0:01:38]} 18. h3 {[%clk 0:01:59]}  Rd8 {[%clk 0:01:21]} 19. Nb5 {[%clk 0:01:55]}  Qc6 {[%clk 0:01:20]} 20. Qa7 {[%clk 0:01:40]}  b6 {[%clk 0:01:15]} 21. Qe7 {[%clk 0:01:34]}  Rd7 {[%clk 0:01:05]} 22. Nd4 {[%clk 0:01:11]}  Qc3 {[%clk 0:00:50]} 23. Qxe6 {[%clk 0:00:51]}  fxe6 {[%clk 0:00:32]} 24. bxc3 {[%clk 0:00:36]}  Ne4 {[%clk 0:00:12]} 25. Rxe4 {[%clk 0:00:36]}  dxe4 {[%clk 0:00:12]} 26. Bxe6+ {[%clk 0:00:32]} 1-0


[Site "https://www.chess.com"]

[Event "Titled Tuesday Blitz January 10 Late 2023"]
[White "Jobava, Baadur"]
[Black "Klukin, Kirill"]
[WhiteFideId "13601520"]
[BlackFideId "24199273"]
[WhiteElo "2578"]
[BlackElo "2390"]
[Result "1-0"]
[Round "06"]
[TimeControl "180+2"]
[Date "2023.01.10"]
[WhiteClock "0:02:31"]
[BlackClock "0:02:30"]

1. b3 {[%clk 0:00:00]}  d5 {[%clk 0:00:00]} 2. Bb2 {[%clk 0:03:00]}  Bf5 {[%clk 0:02:55]} 3. d3 {[%clk 0:03:01]}  Nf6 {[%clk 0:02:55]} 4. Nd2 {[%clk 0:03:02]}  e6 {[%clk 0:02:54]} 5. g3 {[%clk 0:03:02]}  h6 {[%clk 0:02:54]} 6. Bg2 {[%clk 0:03:03]}  Be7 {[%clk 0:02:55]} 7. e4 {[%clk 0:03:03]}  Bh7 {[%clk 0:02:55]} 8. Ne2 {[%clk 0:03:04]}  O-O {[%clk 0:02:55]} 9. O-O {[%clk 0:03:05]}  a5 {[%clk 0:02:55]} 10. a4 {[%clk 0:03:05]}  c6 {[%clk 0:02:56]} 11. Re1 {[%clk 0:03:05]}  Na6 {[%clk 0:02:53]} 12. Nf4 {[%clk 0:03:04]}  b5 {[%clk 0:02:52]} 13. axb5 {[%clk 0:03:03]}  cxb5 {[%clk 0:02:50]} 14. exd5 {[%clk 0:03:02]}  Nxd5 {[%clk 0:02:50]} 15. Nxd5 {[%clk 0:02:59]}  exd5 {[%clk 0:02:47]} 16. Bxd5 {[%clk 0:02:50]}  Qxd5 {[%clk 0:02:47]} 17. Rxe7 {[%clk 0:02:36]}  Nc5 {[%clk 0:02:40]} 18. Qg4 {[%clk 0:02:36]}  Bg6 {[%clk 0:02:30]} 19. Qxg6 {[%clk 0:02:31]} 1-0


[Site "https://www.chess.com"]